Cogmind - Beta 16 @@@ ROGUE MODE // 2025.10.26 @ 14:58:32 Player: beans Result: Destroyed by G-50 Soldier with Heavy Laser Performance ------------- Evolutions (5) 2500 Regions Visited (14) 2800 Robots Destroyed (74) 370 Value Destroyed (3600) 3600 Prototype IDs (32) 640 Alien Tech Used (0) 0 Bonus (3809) 3809 TOTAL SCORE: 13719 Bonus ------- High Alert Combat Kills 692 Follower Combat Kills 2723 Registered with UFD 300 Met Optimus in HQ 500 Met R17 at Cetus 500 Friendly Fire -906 Cogmind --------- Core Integrity 0/1000 Matter 270/300 Energy 100/100 System Corruption 10% Temperature Cool (9) Movement Core (50) Location -5/Factory Parts ------- > --- POWER (1) -------- (None) > --- PROPULSION (4) --- (None) > --- UTILITY (8) ------ Improved Signal Interpreter 0b10 Decoder Chip [Generic] > --- WEAPON (4) ------- (None) > --- INVENTORY (5) ---- Wave Gun Hypervelocity Railgun Gamma Bomb Array DRS Beacon (Ready) Peak State ------------ > --- POWER ------------ Quantum Reactor > --- PROPULSION ------- Heavy Treads Centrium Heavy Treads > --- UTILITY ---------- Advanced Heat Sink Large Storage Unit Advanced Signal Interpreter 0b10 Decoder Chip [Generic] Precision Energy Filter Improved Weapon Cycler Centrium Medium Armor Plating Improved System Guard > --- WEAPON ----------- Wave Gun Wave Gun Cooled Plasma Rifle Cooled Plasma Rifle > --- INVENTORY -------- Nuclear Pulse Array Nuclear Pulse Array Nuclear Pulse Array Nuclear Pulse Array Advanced Recalibrator Advanced KE Penetrator Advanced KE Penetrator Hypervelocity Railgun Heavy Flak Cannon Gamma Bomb Array DRS Beacon [Rating: 119] Favorites ----------- Power Antimatter Reactor Engine Ion Engine Power Core Fission Core Reactor Antimatter Reactor Propulsion Heavy Treads Treads Heavy Treads Leg Cargo Legs Hover Unit Linear Gravjet Flight Unit Nuclear Pulse Array Utility Power Bank Device Power Bank Storage Large Storage Unit Processor 0b10 Decoder Chip [Generic] Protection Centrium Medium Armor Plating Weapon Beamcaster Energy Gun Beamcaster Energy Cannon Phase Cannon Ballistic Gun Barrage Gun Ballistic Cannon Heavy Flak Cannon Launcher Subdweller Shrapnel Launcher Special Weapon CPS Tube Build | -11 -10 -10 -9 -9 -6 -6 -6 -6 -6 -6 -6 -5 -5 -5 ------- Run | Yrd Mat Sub Rec Scr Fac Was Fac Ext Cet Arc Hub Fac Was Fac Slots Evolved 10 | . . . . . 8 . . . . . . 2 . . Power . | . . . . . . . . . . . . . . . Propulsion 2 | . . . . . 2 . . . . . . . . . Utility 6 | . . . . . 4 . . . . . . 2 . . Weapon 2 | . . . . . 2 . . . . . . . . . Parts Attached 81 | 6 . 10 . 2 2 16 2 4 7 5 . 11 7 9 Power 9 | 1 . 1 . 1 . 3 . . 1 . . 1 1 . Engine 2 | 1 . 1 . . . . . . . . . . . . Core 2 | . . . . 1 . . . . . . . 1 . . Reactor 5 | . . . . . . 3 . . 1 . . . 1 . Propulsion 18 | 2 . 2 . . . 3 1 . 1 2 . 1 1 5 Treads 9 | 2 . 1 . . . 2 . . 1 2 . . 1 . Leg 2 | . . 1 . . . . . . . . . 1 . . Wheel . | . . . . . . . . . . . . . . . Hover 1 | . . . . . . 1 . . . . . . . . Flight 6 | . . . . . . . 1 . . . . . . 5 Utility 19 | 1 . 3 . . . 3 1 2 1 . . 2 4 2 Device 9 | . . 2 . . . 2 . . . . . 2 2 1 Storage 2 | 1 . . . . . . . 1 . . . . . . Processor 6 | . . . . . . 1 1 1 . . . . 2 1 Hackware . | . . . . . . . . . . . . . . . Protection 2 | . . 1 . . . . . . 1 . . . . . Artifact . | . . . . . . . . . . . . . . . Weapon 35 | 2 . 4 . 1 2 7 . 2 4 3 . 7 1 2 Energy Gun 10 | . . . . . 1 3 . . 1 2 . 3 . . Energy Cannon 3 | . . . . . . . . 2 . . . 1 . . Ballistic Gun 11 | 2 . 3 . 1 . . . . 2 1 . . . 2 Ballistic Cannon 5 | . . . . . 1 . . . . . . 3 1 . Launcher 3 | . . 1 . . . 2 . . . . . . . . Special Weapon 3 | . . . . . . 2 . . 1 . . . . . Impact Weapon . | . . . . . . . . . . . . . . . Slashing Weapon . | . . . . . . . . . . . . . . . Piercing Weapon . | . . . . . . . . . . . . . . . Special Melee Weapon . | . . . . . . . . . . . . . . . Unidentified Prototypes 12 | . . 1 . . 1 . 1 . 4 . . 4 1 . Corrupted Parts 1 | . . . . . . . . . . . . 1 . . System Corruption 4 | . . . . . . . . . . . . 4 . . Parts Lost 35 | . . 3 . . . 4 . 4 7 1 . 1 . 15 Power 5 | . . 2 . . . . . 1 . . . 1 . 1 Propulsion 9 | . . . . . . 1 . . 2 . . . . 6 Utility 8 | . . . . . . . . 2 . 1 . . . 5 Weapon 13 | . . 1 . . . 3 . 1 5 . . . . 3 Highest Loss Streak 6 | . . 2 . . . 4 . 3 4 1 . 1 . 6 To Critical Strikes 3 | . . . . . . 1 . . 1 . . . . 1 Average Backups 5 | 1 1 4 4 5 7 3 4 5 5 6 8 9 10 9 Power . | . 1 . . . . . . . . . . . . . Propulsion . | . . . . . . . . . . . . 1 4 3 Utility 1 | . . 1 1 1 2 1 2 2 2 2 2 1 . . Weapon 3 | . . 2 3 3 2 . 1 2 3 4 6 6 5 4 Tool/Special . | . . . . . . . . . . . . . . . Unused Backups 5 | . . 1 . 1 . . . . . . . 1 1 1 Power . | . . . . . . . . . . . . . . . Propulsion . | . . . . . . . . . . . . . . . Utility 2 | . . . . . . . . . . . . 1 1 . Weapon 3 | . . 1 . 1 . . . . . . . . . 1 Tool/Special . | . . . . . . . . . . . . . . . Average Slot Usage (%) 69 | . 85 63 45 52 33 50 84 87 75 77 86 86 89 70 Engine 3 | . 14 12 . . . . . . . . . . . . Core 1 | . . . . 8 5 . . . . . . 2 2 . Reactor 4 | . . . . . . 10 17 15 11 8 6 2 2 3 Treads 8 | . 28 6 . . . 7 10 11 8 11 20 16 15 8 Leg 3 | . . 5 9 9 5 . . . . . . . . . Device 14 | . . 14 18 12 5 11 17 17 12 8 6 15 20 12 Storage 5 | . 14 4 9 9 5 . . 5 6 6 6 5 5 4 Processor 4 | . . . . . . 2 7 5 12 12 13 11 11 14 Protection 2 | . . 1 . . . 3 5 5 4 6 6 5 4 3 Energy Gun 6 | . . . . . . 2 17 10 6 4 13 11 22 17 Ballistic Gun 8 | . 28 16 9 13 10 1 . . 7 16 13 4 . . Ballistic Cannon 1 | . . . . . 2 4 5 5 2 . . 3 . . Peak Build Rating 119 | 6 6 35 33 39 45 92 95 95 100 94 88 104 118 119 Average Rating 63 | 4 6 29 33 38 41 61 92 91 91 86 88 97 106 95 On Entrance 60 | . 6 6 33 33 39 44 92 95 80 94 88 88 99 117 Avg Prop Armor Cover (%) 9 | . . . . . . . 12 . . . . 9 10 11 Naked Turns . | . . . . . . . . . . . . . . . Heaviest Build 106 | 13 13 22 12 24 32 80 80 106 87 85 71 81 76 75 Greatest Support 150 | 40 40 55 55 55 55 140 140 140 150 126 126 126 150 150 Greatest Overweight (x) 26 | . . 1 . . . 6 26 . 1 1 . . . 2 Average Overweight (x) . | . . . . . . . . . . . . . . . Largest Inventory Capacity 15 | 8 8 8 8 8 8 8 5 15 15 15 15 15 15 15 Average Capacity 10 | 6 8 6 8 8 8 5 5 14 15 15 15 15 15 14 Most Carried 15 | 4 1 7 4 8 8 8 5 9 9 9 9 15 15 15 Average Carried 7 | 1 1 4 4 6 8 4 5 6 6 7 9 12 14 14 Final Capacity 15 | 8 8 8 8 8 8 5 5 15 15 15 15 15 15 5 Final Carried 15 | 1 1 4 4 8 8 5 5 8 6 9 9 15 15 4 Class Distribution -------------------- 47% | Mutant 45% | Scavenger-Tank 4% | Scavenger-Mutant Dominant Class ---------------- Mutant | -10/Materials Mutant | -10/Subcaves Mutant | -9/Recycling Mutant | -9/Scraptown Mutant | -6/Factory Scavenger-Mutant | -6/Waste Scavenger-Tank | -6/Factory Scavenger-Tank | -6/Extension Scavenger-Tank | -6/Cetus Scavenger-Tank | -6/Archives Scavenger-Tank | -6/Hub_04(d) Scavenger-Tank | -5/Factory Scavenger-Tank | -5/Waste Scavenger-Tank | -5/Factory Resources | -11 -10 -10 -9 -9 -6 -6 -6 -6 -6 -6 -6 -5 -5 -5 ----------- Run | Yrd Mat Sub Rec Scr Fac Was Fac Ext Cet Arc Hub Fac Was Fac Matter Collected 3640 | 189 66 819 . 49 . 715 83 430 221 273 . 414 168 213 Remotely . | . . . . . . . . . . . . . . . Salvage Created 4962 | . 66 301 . . 111 903 32 1675 155 319 . 617 306 477 Parts 154 | . 5 15 . . 9 20 4 44 7 12 . 24 2 12 Haulers Intercepted 6 | . . . . . 1 . . 5 . . . . . . Recyclers Shooed 2 | . . . . . . . . . . . . . . 2 Parts Field Recycled . | . . . . . . . . . . . . . . . Retrieved Matter . | . . . . . . . . . . . . . . . Parts Self-Destructed 22 | . . 22 . . . . . . . . . . . . Prevented . | . . . . . . . . . . . . . . . Parts Restored 1 | . . . . . . . . . . . . . 1 . Broken 1 | . . . . . . . . . . . . . 1 . Kills | -11 -10 -10 -9 -9 -6 -6 -6 -6 -6 -6 -6 -5 -5 -5 ------- Run | Yrd Mat Sub Rec Scr Fac Was Fac Ext Cet Arc Hub Fac Was Fac Combat Hostiles Destroyed 53 | . 1 5 . . . 5 . 20 2 4 . 7 . 9 Guns 31 | . 1 5 . . . 2 . 6 2 4 . 6 . 5 Cannons 19 | . . . . . . 3 . 13 . . . 1 . 2 Classes Destroyed 17 | . 2 5 . . 3 1 . 3 . . . 1 . 2 Worker 4 | . . . . . 2 . 2 . . . . . . . Builder 3 | . 1 . . . . . . 1 . . . . . 1 Hauler 6 | . . . . . 1 . . 5 . . . . . . Recycler 1 | . . . . . . . . . . . . 1 . . Watcher 4 | . . . . . 1 . . 1 1 . . 1 . . Swarmer 1 | . . 1 . . . . . . . . . . . . Cutter 2 | . . . . . . . . . . . . . . 2 Grunt 15 | . 1 . . . . . . 10 . . . . . 4 Brawler 2 | . . . . . . . . 1 . . . . . 1 Duelist 2 | . . . . . . . . . . . . . . 2 Sentry 14 | . . 1 . . . . . 7 . 4 . 2 . . Hunter 3 | . . . . . . . . 1 . . . 2 . . Programmer 4 | . . . . . . . . 1 . . . 3 . . Compactor 5 | . . . . . . 5 . . . . . . . . Cetus Guard 2 | . . . . . . . . . 2 . . . . . Artisan 2 | . . 2 . . . . . . . . . . . . Cobbler 1 | . . 1 . . . . . . . . . . . . Subdweller 6 | . . 3 . . 2 1 . . . . . . . . Best Kill Streak 5 | . 2 2 . . 4 1 1 5 2 1 . 3 . 4 Combat Bots Only 4 | . 1 2 . . . 1 . 4 1 1 . 2 . 4 Max Kills in Single Turn 5 | . 1 1 . . 5 2 1 1 2 1 . 2 . 1 Gunslinging . | . . . . . . . . . . . . . . . Exploded . | . . . . . . . . . . . . . . . Melee . | . . . . . . . . . . . . . . . Uniques/NPCs Destroyed . | . . . . . . . . . . . . . . . Combat | -11 -10 -10 -9 -9 -6 -6 -6 -6 -6 -6 -6 -5 -5 -5 -------- Run | Yrd Mat Sub Rec Scr Fac Was Fac Ext Cet Arc Hub Fac Was Fac Hostile Shots Fired 689 | . 4 43 . . . 2 9 235 69 33 . 50 . 244 Missed 227 | . . 19 . . . . 1 80 23 9 . 14 . 81 Hits 462 | . 4 24 . . . 2 8 155 46 24 . 36 . 163 Melee 17 | . . . . . . 2 . 1 . . . . . 14 Projectile 445 | . 4 24 . . . . 8 154 46 24 . 36 . 149 AOE 2 | . . . . . . . . 1 . . . . . 1 Critical Strikes 23 | . . . . . . 2 . 4 8 . . 1 . 8 Damage Taken 10028 | . 45 1118 . . 224 323 57 2673 1262 563 . 816 . 2947 Core 2005 | . 11 223 . . . 140 . 338 214 73 . 77 . 929 Absorbed by Shields . | . . . . . . . . . . . . . . . Reduced by Siege Mode 66 | . . . . . . . . 21 27 18 . . . . Ignored by Resistances 3 | . . 3 . . . . . . . . . . . . Regen/Repaired (Parts) 1315 | . . . . . . 24 16 1115 . . . . . 160 Core Remaining (%) 38 | 100 . . . 6 . . . . . . 10 . . . Volleys Fired 352 | . 11 76 . . 5 55 6 82 22 20 . 33 5 37 Largest 4 | . 2 2 . . 3 4 3 4 3 3 . 4 4 4 Hottest 332 | . 40 60 . . 97 225 225 289 235 162 . 332 210 210 Shots Fired 812 | . 22 123 . . 13 90 17 259 44 56 . 78 22 88 Gun 555 | . 22 105 . . 10 31 17 118 31 56 . 64 22 79 Cannon 223 | . . . . . 3 43 . 141 13 . . 14 . 9 Launcher 32 | . . 18 . . . 14 . . . . . . . . Special 2 | . . . . . . 2 . . . . . . . . Kinetic 381 | . 22 123 . . 13 71 . 28 20 52 . 38 . 14 Thermal 415 | . . . . . . 3 17 231 24 4 . 40 22 74 Explosive 12 | . . . . . . 12 . . . . . . . . Electromagnetic 2 | . . . . . . 2 . . . . . . . . Robot Hit Streak 19 | . 3 7 . . 4 10 11 10 17 13 . 12 19 6 Robot Miss Streak 9 | . 2 3 . . 4 4 3 7 3 3 . 2 . 9 Penetration Max 1 | . . . . . . . . . 1 1 . 1 . . Secondary Targets 3 | . . 1 . . . . . . 1 . . . . 1 Max Gunslinging Chain 1 | . . 1 . . . . . . 1 . . . . 1 Shots Hit Robots 444 | . 11 39 . . 7 67 11 143 28 30 . 44 15 49 Core Hits 229 | . 5 16 . . 11 34 5 72 28 11 . 17 2 28 Critical Kills 5 | . . . . . . . . . 1 1 . 3 . . Critical Parts Destroyed 8 | . . 1 . . . . . . 1 4 . 2 . . Critical Strikes 24 | . . 1 . . . . . 5 4 6 . 5 2 1 Burn 9 | . . . . . . . . 5 1 . . . 2 1 Destroy 15 | . . 1 . . . . . . 3 6 . 5 . . Melee Attacks . | . . . . . . . . . . . . . . . Impact . | . . . . . . . . . . . . . . . Slashing . | . . . . . . . . . . . . . . . Piercing . | . . . . . . . . . . . . . . . Sneak Attacks . | . . . . . . . . . . . . . . . Combat Hostiles . | . . . . . . . . . . . . . . . Follow-up Attacks . | . . . . . . . . . . . . . . . Damage Inflicted 13769 | . 134 674 . . 937 2825 252 4113 930 842 . 1364 431 1267 Guns 7150 | . 134 566 . . 66 438 252 1614 583 842 . 1098 431 1126 Cannons 4796 | . . . . . 89 1454 . 2499 347 . . 266 . 141 Explosions 1823 | . . 108 . . 782 933 . . . . . . . . Melee . | . . . . . . . . . . . . . . . Ramming . | . . . . . . . . . . . . . . . Kinetic 5941 | . 134 674 . . 155 1892 . 635 602 842 . 784 . 223 Thermal 6113 | . . . . . . . 252 3478 328 . . 580 431 1044 Explosive 1710 | . . . . . 782 928 . . . . . . . . Electromagnetic 5 | . . . . . . 5 . . . . . . . . Impact . | . . . . . . . . . . . . . . . Slashing . | . . . . . . . . . . . . . . . Piercing . | . . . . . . . . . . . . . . . Highest Corruption 11 | . . . . . 3 3 3 11 11 11 11 9 9 10 Average Corruption 5 | . . . . . 3 3 3 3 11 11 11 7 9 9 Corruption Purged . | . . . . . . . . . . . . . . . Corruption Blocked . | . . . . . . . . . . . . . . . Effects 201 | . . . . . 6 21 13 44 22 17 2 25 42 9 Message Errors 42 | . . . . . 1 5 5 9 3 4 . 5 9 1 Matter Fused 45 | . . . . . 2 4 1 9 6 3 . 6 11 3 Heat Flow Errors 31 | . . . . . 1 4 2 6 4 1 . 6 6 1 Energy Discharges 18 | . . . . . . 1 1 4 3 2 1 3 2 1 Parts Rejected 2 | . . . . . . 1 . . . . . . . 1 Parts Fused 3 | . . . . . 2 . . . 1 . . . . . Data Loss (minor) 29 | . . . . . . 5 1 7 4 3 . 3 5 1 Data Loss (major) 6 | . . . . . . 1 . 1 . . . 1 3 . Misfires 8 | . . . . . . . . 3 . 1 . . 4 . Alerts 7 | . . . . . . . 2 2 1 . 1 1 . . Misdirections 2 | . . . . . . . . . . 1 . . . 1 Weapon Failures 8 | . . . . . . . 1 3 . 2 . . 2 . Overload Shots 4 | . . . . . . . . . . . . . . 4 Overflow Damage 106 | . . . . . 16 . . 65 . . . 23 . 2 Projectiles 90 | . . . . . . . . 65 . . . 23 . 2 Explosions 16 | . . . . . 16 . . . . . . . . . Melee . | . . . . . . . . . . . . . . . Knockbacks 9 | . . . . . . . . 5 . . . . . 4 Impact . | . . . . . . . . . . . . . . . Kinetic 8 | . . . . . . . . 4 . . . . . 4 Secondary 1 | . . . . . . . . 1 . . . . . . Self-Inflicted Damage 257 | . . 43 . . 207 7 . . . . . . . . Shots 6 | . . 2 . . 3 1 . . . . . . . . Rammed . | . . . . . . . . . . . . . . . Targets Rammed . | . . . . . . . . . . . . . . . Kicked . | . . . . . . . . . . . . . . . Crushed . | . . . . . . . . . . . . . . . Highest Temperature 443 | . 6 . . . 117 242 194 312 344 96 . 295 269 443 Average Temperature 88 | . 6 . . . 59 71 25 61 152 38 . 97 99 129 Received Heat Transfer 1200 | . 24 57 . . 6 . 18 564 108 45 . 72 . 306 Effects 11 | . . . . . . . . . 2 . . 1 . 8 Energy Bleed 1 | . . . . . . . . . . . . 1 . . Interference 7 | . . . . . . . . . 2 . . . . 5 Short Circuit 3 | . . . . . . . . . . . . . . 3 Siege Activations 5 | . . . . . . . . 1 1 3 . . . . Total Turns 70 | . . . . . . . . 6 20 44 . . . . Longest Duration 21 | . . . . . . . . 6 20 21 . . . . Martial Activations . | . . . . . . . . . . . . . . . Shielding Activations . | . . . . . . . . . . . . . . . Robots Disrupted . | . . . . . . . . . . . . . . . Combat Hostiles . | . . . . . . . . . . . . . . . Robots Corrupted . | . . . . . . . . . . . . . . . Combat Hostiles . | . . . . . . . . . . . . . . . Parts Fried . | . . . . . . . . . . . . . . . Impact Corruptions . | . . . . . . . . . . . . . . . Robots Melted 3 | . . . . . . . . 1 . . . . . 2 Combat Hostiles 3 | . . . . . . . . 1 . . . . . 2 Parts Melted 24 | . . . . . . . . 9 2 . . 3 2 8 Heat Transferred 10112 | . . . . . . . 444 5402 629 . . 755 996 1886 Parts Sabotaged 1 | . . . . . . . . 1 . . . . . . Parts Stolen . | . . . . . . . . . . . . . . . Parts Stripped . | . . . . . . . . . . . . . . . Power Chain Reactions 1 | . . . . . . 1 . . . . . . . . Alert | -11 -10 -10 -9 -9 -6 -6 -6 -6 -6 -6 -6 -5 -5 -5 ------- Run | Yrd Mat Sub Rec Scr Fac Was Fac Ext Cet Arc Hub Fac Was Fac Maximum Alert Level 5 | . . . . . 2 . . 5 3 1 . 1 . 3 Low Security (%) 63 | 100 100 . 100 . 22 100 100 29 . 7 100 86 100 51 Level 1 12 | . . . . . 38 . . 28 . 92 . 13 . 1 Level 2 7 | . . . . . 38 . . 11 . . . . . 30 Level 3 13 | . . . . . . . . 19 100 . . . . 15 Level 4 2 | . . . . . . . . 9 . . . . . . Level 5 . | . . . . . . . . 1 . . . . . . High Security . | . . . . . . . . . . . . . . . Max Security . | . . . . . . . . . . . . . . . Peak Influence 1627 | . 35 . . . 490 168 70 1627 909 285 69 306 94 730 Initial 909 | . . . . . . 168 . 16 909 280 64 23 94 . Average 242 | . 5 . . . 309 16 24 498 808 244 60 64 7 337 Influence Increases 5580 | . 35 236 . . 600 67 221 2333 221 135 15 504 . 1213 Destroy 0b10 Robot/C 2180 | . 20 160 . . 120 . 60 940 160 80 . 260 . 380 Destroy 0b10 Robot/NC 135 | . 5 . . . 20 . 15 55 10 . . 10 . 20 Destroy Leader 344 | . 10 . . . 34 . 32 126 . . . 82 . 60 Allied During Kill 1521 | . . 16 . . 77 . 107 1071 48 . . 85 . 117 Successful Hack 32 | . . . . . . . 6 . . . . . . 26 Disable Machine 420 | . . . . . 135 . . 45 . 45 . 15 . 180 Anti-Garrison Action 300 | . . . . . 150 . . . . . . . . 150 Destroy Structure 363 | . . . . . 64 67 1 66 3 10 . 52 . 100 Partial Spotted 30 | . . . . . . . . . . . 15 . . 15 Lose Combat Pursuer 255 | . . 60 . . . . . 30 . . . . . 165 Influence Decreases 4913 | . 35 236 . . 120 547 188 741 1144 652 151 283 270 546 Entered New Map 1790 | . . . . . . 312 . 17 716 422 121 26 176 . Time Decay 2273 | . 35 136 . . 100 115 188 504 278 180 30 257 94 356 Lost Part 310 | . . . . . . 40 . 40 70 10 . . . 150 Lost Ally 540 | . . 100 . . 20 80 . 180 80 40 . . . 40 Squads Dispatched 28 | . 2 . . . 4 . 1 6 . . . 7 . 8 Investigation 4 | . . . . . . . . 2 . . . 1 . 1 Extermination 6 | . . . . . . . 1 . . . . 3 . 2 Reinforcement 10 | . 2 . . . 1 . . 2 . . . 3 . 2 Assault 6 | . . . . . 2 . . 2 . . . . . 2 Garrison 2 | . . . . . 1 . . . . . . . . 1 Intercept . | . . . . . . . . . . . . . . . Searches Triggered . | . . . . . . . . . . . . . . . Construction Impeded 2 | . . . . . . . . 2 . . . . . . Haulers Reinforced . | . . . . . . . . . . . . . . . Active Scanning Responses . | . . . . . . . . . . . . . . . Cargo Convoy Interrupts . | . . . . . . . . . . . . . . . Stealth | -11 -10 -10 -9 -9 -6 -6 -6 -6 -6 -6 -6 -5 -5 -5 --------- Run | Yrd Mat Sub Rec Scr Fac Was Fac Ext Cet Arc Hub Fac Was Fac Distress Signals 7 | . . . . . . . . . 2 . . . . 5 Communications Jammed . | . . . . . . . . . . . . . . . Distress Signals . | . . . . . . . . . . . . . . . Times Spotted 176 | . 3 29 . . 5 6 3 52 9 12 . 13 . 44 Peak Tracking Total 9 | . 1 4 . . 3 3 1 6 5 1 . 2 . 9 Tactical Retreats 9 | . . 2 . . . . . 2 . . . . . 5 Traps | -11 -10 -10 -9 -9 -6 -6 -6 -6 -6 -6 -6 -5 -5 -5 ------- Run | Yrd Mat Sub Rec Scr Fac Was Fac Ext Cet Arc Hub Fac Was Fac Traps Triggered 6 | . . 2 . . 1 . . . . . . 1 . 2 Indirectly . | . . . . . . . . . . . . . . . Trap Hack Attempts . | . . . . . . . . . . . . . . . Triggered . | . . . . . . . . . . . . . . . Disarmed . | . . . . . . . . . . . . . . . Reprogrammed . | . . . . . . . . . . . . . . . Reused . | . . . . . . . . . . . . . . . Traps Extracted . | . . . . . . . . . . . . . . . Installed . | . . . . . . . . . . . . . . . Triggered . | . . . . . . . . . . . . . . . Machines | -11 -10 -10 -9 -9 -6 -6 -6 -6 -6 -6 -6 -5 -5 -5 ---------- Run | Yrd Mat Sub Rec Scr Fac Was Fac Ext Cet Arc Hub Fac Was Fac Machines Disabled 35 | . . 3 . . 10 . . 5 . 3 . 1 . 13 Max in Single Turn 5 | . . 1 . . 5 . . 1 . 1 . 1 . 1 Garrison Access 2 | . . . . . 1 . . . . . . . . 1 Machines Repaired . | . . . . . . . . . . . . . . . Machines Dismantled . | . . . . . . . . . . . . . . . Machines Sabotaged . | . . . . . . . . . . . . . . . Overloaded Fab Kills . | . . . . . . . . . . . . . . . Hacking | -11 -10 -10 -9 -9 -6 -6 -6 -6 -6 -6 -6 -5 -5 -5 --------- Run | Yrd Mat Sub Rec Scr Fac Was Fac Ext Cet Arc Hub Fac Was Fac Machines Accessed 19 | . . 4 . 2 . . 2 5 2 . . 2 . 2 Terminals 9 | . . . . . . . 1 5 2 . . 1 . . Fabricators 1 | . . . . . . . 1 . . . . . . . Repair Stations 1 | . . . . . . . . . . . . . . 1 Recycling Units 2 | . . . . . . . . . . . . 1 . 1 Scanalyzers . | . . . . . . . . . . . . . . . Garrison Access . | . . . . . . . . . . . . . . . Total Hacks 54 | . . 17 . 14 . . 4 9 3 . . 3 . 4 Successful 40 | . . 17 . 14 . . 3 1 . . . 2 . 3 Failed 14 | . . . . . . . 1 8 3 . . 1 . 1 Catastrophic 3 | . . . . . . . . 2 1 . . . . . Database Lockouts . | . . . . . . . . . . . . . . . Manual 5 | . . . . . . . . . 1 . . 2 . 2 Terminals 15 | . . . . . . . 2 9 3 . . 1 . . Fabricators 2 | . . . . . . . 2 . . . . . . . Repair Stations 2 | . . . . . . . . . . . . . . 2 Recycling Units 4 | . . . . . . . . . . . . 2 . 2 Scanalyzers . | . . . . . . . . . . . . . . . Garrison Access . | . . . . . . . . . . . . . . . Terminal Hacks 34 | . . 17 . 14 . . 1 1 . . . 1 . . Record 30 | . . 14 . 14 . . . 1 . . . 1 . . Open Door 2 | . . 1 . . . . 1 . . . . . . . Proto ID Catalog 1 | . . 1 . . . . . . . . . . . . Release Object 1 | . . 1 . . . . . . . . . . . . Fabricator Hacks 2 | . . . . . . . 2 . . . . . . . Network Status 1 | . . . . . . . 1 . . . . . . . Build 1 | . . . . . . . 1 . . . . . . . Repair Station Hacks 2 | . . . . . . . . . . . . . . 2 Scan Component 1 | . . . . . . . . . . . . . . 1 Repair 1 | . . . . . . . . . . . . . . 1 Recycling Unit Hacks . | . . . . . . . . . . . . . . . Scanalyzer . | . . . . . . . . . . . . . . . Garrison Access Hacks . | . . . . . . . . . . . . . . . Unauthorized Hacks 2 | . . . . . . . . . . . . 1 . 1 Terminals . | . . . . . . . . . . . . . . . Fabricators . | . . . . . . . . . . . . . . . Repair Stations . | . . . . . . . . . . . . . . . Recycling Units 2 | . . . . . . . . . . . . 1 . 1 Fedlink 1 | . . . . . . . . . . . . . . 1 Scrapoids 1 | . . . . . . . . . . . . 1 . . Scanalyzers . | . . . . . . . . . . . . . . . Garrison Access . | . . . . . . . . . . . . . . . Data Cores Recovered . | . . . . . . . . . . . . . . . Used . | . . . . . . . . . . . . . . . Hacking Detections 10 | . . . . . . . 2 5 1 . . 1 . 1 Full Trace Events 2 | . . . . . . . . 2 . . . . . . Feedback Events . | . . . . . . . . . . . . . . . Feedback Blocked . | . . . . . . . . . . . . . . . Robot Schematics Acquired . | . . . . . . . . . . . . . . . Robots Built 3 | . . . . . . . 3 . . . . . . . Authchips . | . . . . . . . . . . . . . . . Time 116 | . . . . . . . 116 . . . . . . . Total Robot Build Rating 9 | . . . . . . . 9 . . . . . . . Part Schematics Acquired . | . . . . . . . . . . . . . . . Parts Built . | . . . . . . . . . . . . . . . Authchips . | . . . . . . . . . . . . . . . Time . | . . . . . . . . . . . . . . . Total Part Build Rating . | . . . . . . . . . . . . . . . Part Studies Acquired . | . . . . . . . . . . . . . . . Parts Repaired 1 | . . . . . . . . . . . . . . 1 Time 34 | . . . . . . . . . . . . . . 34 Parts Recycled . | . . . . . . . . . . . . . . . Recycled Matter . | . . . . . . . . . . . . . . . Retrieved Matter . | . . . . . . . . . . . . . . . Retrieved Components . | . . . . . . . . . . . . . . . Parts Scanalyzed . | . . . . . . . . . . . . . . . Part Schematics Acquired . | . . . . . . . . . . . . . . . Parts Damaged . | . . . . . . . . . . . . . . . Bothacking | -11 -10 -10 -9 -9 -6 -6 -6 -6 -6 -6 -6 -5 -5 -5 ------------ Run | Yrd Mat Sub Rec Scr Fac Was Fac Ext Cet Arc Hub Fac Was Fac Used RIF Installer . | . . . . . . . . . . . . . . . Robots Hacked . | . . . . . . . . . . . . . . . Non-combat . | . . . . . . . . . . . . . . . Combat . | . . . . . . . . . . . . . . . Robot Hacks Applied . | . . . . . . . . . . . . . . . Relay Couplers Released 5 | . . . . . 4 . . . . . . . . 1 Machine Destruction 5 | . . . . . 4 . . . . . . . . 1 Fabnet Peak Effective % . | . . . . . . . . . . . . . . . Robots Rewired . | . . . . . . . . . . . . . . . Allies Hacked 1 | . . . . . . . . 1 . . . . . . Hacks Repelled . | . . . . . . . . . . . . . . . Allies | -11 -10 -10 -9 -9 -6 -6 -6 -6 -6 -6 -6 -5 -5 -5 -------- Run | Yrd Mat Sub Rec Scr Fac Was Fac Ext Cet Arc Hub Fac Was Fac Total Allies 42 | . . 15 . . . 19 3 . . . . 5 . . Largest Group 22 | . . 10 9 9 9 19 22 22 7 2 . 5 4 4 Highest-Rated Group 732 | . . 190 171 171 171 684 732 730 258 84 . 235 188 188 Highest-Rated Ally 50 | . . 19 19 19 19 50 50 50 47 46 . 47 47 47 Total Orders . | . . . . . . . . . . . . . . . Ally Attacks 624 | . . 63 . . 25 47 41 266 58 1 . 34 . 89 Total Damage 14494 | . . 1150 . . 1603 1421 764 5402 1170 23 . 651 . 2310 Kills 90 | . . 13 . . 6 2 4 36 7 . . 7 . 15 Allies Corrupted . | . . . . . . . . . . . . . . . Allies Melted . | . . . . . . . . . . . . . . . Intel | -11 -10 -10 -9 -9 -6 -6 -6 -6 -6 -6 -6 -5 -5 -5 ------- Run | Yrd Mat Sub Rec Scr Fac Was Fac Ext Cet Arc Hub Fac Was Fac Active Infowar (turns) 8202 | . . . . . . 570 658 2177 606 369 60 1121 1336 1305 Decoding 8202 | . . . . . . 570 658 2177 606 369 60 1121 1336 1305 Robot Analysis Total . | . . . . . . . . . . . . . . . Derelict Logs Recovered 1 | . . 1 . . . . . . . . . . . . Drone Launches . | . . . . . . . . . . . . . . . Drone Recoveries . | . . . . . . . . . . . . . . . Decoded 0b10 Intel 173 | . . . . . . 5 20 49 7 6 2 30 15 39 Traps 23 | . . . . . . . 3 11 . . . 5 . 4 Emergency Access 11 | . . . . . . . 2 3 . . 1 3 . 2 Items 108 | . . . . . . 5 12 26 1 2 1 21 15 25 Machines 18 | . . . . . . . 1 6 4 2 . 1 . 4 Patrols 2 | . . . . . . . 1 1 . . . . . . Guards 6 | . . . . . . . 1 1 . . . . . 4 Exits 5 | . . . . . . . . 1 2 2 . . . . Exploration | -11 -10 -10 -9 -9 -6 -6 -6 -6 -6 -6 -6 -5 -5 -5 ------------- Run | Yrd Mat Sub Rec Scr Fac Was Fac Ext Cet Arc Hub Fac Was Fac Turns Passed 16332 | 68 219 4599 147 2210 259 1198 658 2177 606 369 60 1121 1336 1305 Spaces Moved 9432 | 46 37 2873 75 1651 178 655 297 1114 271 133 37 583 553 929 Core 117 | 16 . . . . . 25 2 . . . . . . 74 Treads 4724 | 30 37 672 . . . 466 295 1114 271 133 37 583 553 533 Legs 4144 | . . 2201 75 1651 178 39 . . . . . . . . Wheels . | . . . . . . . . . . . . . . . Hover 125 | . . . . . . 125 . . . . . . . . Flight 322 | . . . . . . . . . . . . . . 322 Fastest Speed 37 | 50 160 130 130 130 130 40 160 160 160 160 160 160 160 37 Average Speed 142 | 121 160 137 130 130 130 148 168 160 187 175 160 160 160 114 Slowest Speed 1350 | 160 160 260 130 130 130 350 1350 160 240 240 160 160 160 200 Overloaded Moves . | . . . . . . . . . . . . . . . Propulsion Burnouts . | . . . . . . . . . . . . . . . Robots Hopped 5 | . . . . . . . . . . . . . . 5 Potential Cave-ins 32 | . . 32 . . . . . . . . . . . . Cave-ins Triggered 3 | . . 2 . . . . . 1 . . . . . . Exploration Rate (%) 47 | 4 12 88 17 87 6 96 9 96 71 81 6 17 97 20 Regions Visited 14 Branch Regions 7 Pre-discovered Areas 3 | . . 3 . . . . . . . . . . . . Known Exits Taken 4 | . . . . . . . . 1 1 1 1 . . . Unknown Exits Taken 6 | 1 1 1 1 1 . . 1 . . . . . . . Scrap Searched 17 | . . 10 . 7 . . . . . . . . . . Spaces Dug 173 | . . 159 . . . 2 . 3 . . . 6 . 3 Terrain Destroyed 443 | . . 283 . . 24 55 . 34 2 20 . 22 . 3 Melee . | . . . . . . . . . . . . . . . Projectile 84 | . . 3 . . . . . 34 2 20 . 22 . 3 AOE 359 | . . 280 . . 24 55 . . . . . . . . Terrain Rammed . | . . . . . . . . . . . . . . . Walls Destroyed . | . . . . . . . . . . . . . . . Machines Disabled . | . . . . . . . . . . . . . . . Actions | -11 -10 -10 -9 -9 -6 -6 -6 -6 -6 -6 -6 -5 -5 -5 --------- Run | Yrd Mat Sub Rec Scr Fac Was Fac Ext Cet Arc Hub Fac Was Fac Total 11649 | 58 177 3406 124 1716 197 806 441 1322 329 224 38 710 995 1106 Wait 1617 | . 130 418 50 54 11 63 134 112 19 61 2 46 415 102 Move 9410 | 45 36 2870 74 1650 178 654 296 1113 270 132 36 583 552 921 Hop 3 | . . . . . . . . . . . . . . 3 Pick Up 79 | 7 . 11 . 8 . 10 . 6 6 6 . 14 3 8 Fast Attach 30 | . . 3 . . 2 6 3 1 . . . 2 7 6 Attach 67 | 6 . 7 . 2 . 14 . 5 9 3 . 9 1 11 Detach 17 | . . 3 . . . 3 . 2 1 . . 2 . 6 Swap 26 | . . 9 . . . . . . 1 2 . 10 1 3 Drop 45 | . . 7 . 2 1 1 2 1 1 . . 11 10 9 Fire 352 | . 11 76 . . 5 55 6 82 22 20 . 33 5 37 Melee . | . . . . . . . . . . . . . . . Ram . | . . . . . . . . . . . . . . . Kick . | . . . . . . . . . . . . . . . Crush . | . . . . . . . . . . . . . . . Escape Stasis 2 | . . 2 . . . . . . . . . . . . Rewire 1 | . . . . . . . . . . . . . 1 . Trap . | . . . . . . . . . . . . . . . Miscellaneous . | . . . . . . . . . . . . . . . Route ------- -11/Scrapyard -10/Materials -10/Subcaves (discovered 3 exits: [*Mat x2] / [*Rec]) -9/Recycling -9/Scraptown -6/Factory -6/Waste -6/Factory -6/Extension (discovered 3 exits: *Fac x2 / *Cet) -6/Cetus (discovered 2 exits: *Fac / *Arc) -6/Archives (discovered 3 exits: *Fac / *Hub x2) -6/Hub_04(d) -5/Factory -5/Waste -5/Factory (discovered 2 exits: [*Fac] / *Upp) History --------- Turn | Location | Event 2 | -11/Scrapyard | Met Revision 17 4 | -11/Scrapyard | Discovered new exit (range 16) 69 | -11/Scrapyard | Entered Materials 272 | -10/Materials | Discovered new exit (range 6) 288 | -10/Materials | Entered Subcaves 289 | -10/Subcaves | Approached by a straggling Scientist 317 | -10/Subcaves | Build established: Mutant 691 | -10/Subcaves | Discovered new exit (range 12) 694 | -10/Subcaves | Shifting Twisted Machinery released Scrap Shield 742 | -10/Subcaves | Shifting Twisted Machinery released Sub. Beam Cannon 755 | -10/Subcaves | Build established: Derelict-Mutant 774 | -10/Subcaves | Visited triangular shrine 783 | -10/Subcaves | Found Prototype Device 802 | -10/Subcaves | Identified V3-11A's Pendant 824 | -10/Subcaves | Befriended Subdweller 934 | -10/Subcaves | Visited 4L-MR0's lab 957 | -10/Subcaves | Found Power Bank 959 | -10/Subcaves | Attached Power Bank, gained temporary slots: Power x3 1100 | -10/Subcaves | Build established: Mutant 1281 | -10/Subcaves | Ambushed by Subdwellers from Twisted Machinery 1282 | -10/Subcaves | Befriended Subdweller 1282 | -10/Subcaves | Befriended Subdweller 1376 | -10/Subcaves | Ambushed by angry Subdweller bent on revenge 1377 | -10/Subcaves | Befriended Subdweller 1413 | -10/Subcaves | Discovered new exit (range 11) 1417 | -10/Subcaves | Befriended Subdweller 1417 | -10/Subcaves | Befriended Subdweller 1454 | -10/Subcaves | Lost 5 allies 1548 | -10/Subcaves | A Subdweller sparked back to life 1548 | -10/Subcaves | A Subdweller sparked back to life 1548 | -10/Subcaves | A Subdweller sparked back to life 1552 | -10/Subcaves | Befriended Subdweller 1552 | -10/Subcaves | Befriended Subdweller 1582 | -10/Subcaves | Found Cargo Legs 1583 | -10/Subcaves | Attached Cargo Legs, gained temporary slots: Utility x2 1592 | -10/Subcaves | Befriended Subdweller 1712 | -10/Subcaves | Befriended Subdweller 1807 | -10/Subcaves | Befriended Subdweller 1807 | -10/Subcaves | Befriended Subdweller 1883 | -10/Subcaves | Shifting Twisted Machinery released Battle Rifle 1886 | -10/Subcaves | Shifting Twisted Machinery released Barrage Gun 1910 | -10/Subcaves | Discovered new exit (range 9) 1945 | -10/Subcaves | Visited Clippyterm 1949 | -10/Subcaves | Learned location of Deep Caves (-7) 1949 | -10/Subcaves | Learned Factory stockpile data 2621 | -10/Subcaves | Learned location of Zion (-7) 2652 | -10/Subcaves | Met a Zionite searching for "candidates" 2827 | -10/Subcaves | Befriended Subdweller 3302 | -10/Subcaves | Ambushed by Subdweller buried in earth 3307 | -10/Subcaves | Ambushed by Subdweller buried in earth 3336 | -10/Subcaves | Ambushed by Subdweller buried in earth 3337 | -10/Subcaves | Befriended Subdweller 3343 | -10/Subcaves | Ambushed by Subdweller buried in earth 3359 | -10/Subcaves | Crushed by falling debris 3621 | -10/Subcaves | Crushed by falling debris 3622 | -10/Subcaves | Core integrity fell below 50% 3622 | -10/Subcaves | Core integrity fell below 20% 3913 | -10/Subcaves | Ambushed by Subdweller buried in earth 3917 | -10/Subcaves | Befriended Subdweller 4287 | -10/Subcaves | A swath of the cavern ceiling suddenly collapsed 4887 | -10/Subcaves | Entered Recycling 4887 | -9/Recycling | Accompanied by 9 allies 4946 | -9/Recycling | Scanned before Scraplab entrance 4964 | -9/Recycling | Entered Scraplab 4977 | -9/Recycling | Discovered new exit (range 2) 5034 | -9/Recycling | Entered Scraptown 5034 | -9/Scraptown | Accompanied by 9 allies 5207 | -9/Scraptown | Visited UFD Registry 5207 | -9/Scraptown | Registered with UFD as "Railgrid" 5245 | -9/Scraptown | Visited Abandonware Association 5264 | -9/Scraptown | Learned abandonware demo "TRNCOAT.EXE" 5264 | -9/Scraptown | Learned abandonware demo "KABOOM.EXE" 5293 | -9/Scraptown | Visited Scrap Suit Storage 5315 | -9/Scraptown | Visited Curators Association 5357 | -9/Scraptown | Visited LU-1G1's Boring Crew 5414 | -9/Scraptown | Visited Derelict Rescue Squad 5424 | -9/Scraptown | Found DRS Beacon 5454 | -9/Scraptown | Visited Infowarlord's Domain 5474 | -9/Scraptown | Visited Cartography Club 5573 | -9/Scraptown | Visited Scrapoid Research Area 5625 | -9/Scraptown | Visited Chapter 10 5803 | -9/Scraptown | Visited Comm Corps 5863 | -9/Scraptown | Visited Science Testing Area 5912 | -9/Scraptown | Delivered V3-11A's Pendant to T0-NE2 in exchange for information 6107 | -9/Scraptown | Visited Bundlers 6185 | -9/Scraptown | Visited TADAMA 6213 | -9/Scraptown | Heard Great Nut preacher, LISTEN AND RECITE! 6229 | -9/Scraptown | Visited Artisan Demo Area 6320 | -9/Scraptown | Visited Cave Peace 6367 | -9/Scraptown | Visited Awakened 7040 | -9/Scraptown | Discovered new exit (range 3) 7127 | -9/Scraptown | Met Optimus 7127 | -9/Scraptown | Accepted into 0bPrime 7244 | -9/Scraptown | Entered Factory 7244 | -6/Factory | Accompanied by 9 allies 7244 | -6/Factory | Evolved 8 slots: Propulsion x2, Utility x4, Weapon x2 7297 | -6/Factory | Garrison activated, responded to threat 7476 | -6/Factory | Discovered new exit (range 16) 7503 | -6/Factory | Sucked down chute 7503 | -6/Factory | Entered Waste 7550 | -6/Waste | Spotted C-40 Crusher 7565 | -6/Waste | Spotted C-40 Crusher 7567 | -6/Waste | Destroyed C-40 Crusher 7576 | -6/Waste | Spotted C-40 Crusher 7589 | -6/Waste | Spotted C-40 Crusher 7590 | -6/Waste | Destroyed C-40 Crusher 7615 | -6/Waste | Spotted C-40 Crusher 7617 | -6/Waste | Allies destroyed C-40 Crusher 7628 | -6/Waste | 6 allies followed down the chute 7637 | -6/Waste | Destroyed C-40 Crusher 7642 | -6/Waste | Lost 4 allies 7642 | -6/Waste | Crushed by Compactor (0 parts destroyed, 2 dropped) 7650 | -6/Waste | Crushed by Compactor (1 part destroyed, 1 dropped) 7654 | -6/Waste | Attached CPS modules to C-40 Crusher. 7669 | -6/Waste | Destroyed C-40 Crusher 7673 | -6/Waste | Spotted C-40 Crusher 7681 | -6/Waste | Lost 4 parts (1n3w) 7788 | -6/Waste | Attached CPS modules to C-40 Crusher. 7814 | -6/Waste | Discovered new exit (range 13) 7880 | -6/Waste | Destroyed C-40 Crusher 7917 | -6/Waste | Warlord forces began an assault 8130 | -6/Waste | Found Gamma Bomb Array 8231 | -6/Waste | Build established: Scavenger-Mutant 8701 | -6/Waste | Entered Factory 8701 | -6/Factory | Accompanied by 19 allies 8789 | -6/Factory | Build established: Scavenger-Tank 9243 | -6/Factory | Fabricated G-47 Trooper (x3) 9313 | -6/Factory | Discovered new exit (range 5) 9359 | -6/Factory | Entered Extension 9359 | -6/Extension | Accompanied by 22 allies 9659 | -6/Extension | Disrupted transfer network 9749 | -6/Extension | Lost 4 allies 10308 | -6/Extension | Disrupted transfer network 10455 | -6/Extension | Spotted B-75 Beast 10475 | -6/Extension | Allies destroyed B-75 Beast 10481 | -6/Extension | Spotted B-75 Beast 10502 | -6/Extension | Allies destroyed B-75 Beast 10524 | -6/Extension | Identified exit to Factory 10739 | -6/Extension | Discovered exit to Factory (range 16) 10739 | -6/Extension | Discovered new exit (range 16) 11109 | -6/Extension | First assault squad dispatched 11297 | -6/Extension | Lost 3 allies 11485 | -6/Extension | Crushed by falling debris 11485 | -6/Extension | Core integrity fell below 50% 11485 | -6/Extension | System corruption reached 10% 11516 | -6/Extension | Lost 3 parts (2u1w) 11533 | -6/Extension | Identified exit to Cetus 11536 | -6/Extension | Entered Cetus 11536 | -6/Cetus | Accompanied by 7 allies 11561 | -6/Cetus | Spotted Cetus Guard 11561 | -6/Cetus | Spotted Cetus Guard 11565 | -6/Cetus | Spotted Cetus Guard 11567 | -6/Cetus | Spotted Cetus Guard 11577 | -6/Cetus | Destroyed Cetus Guard 11580 | -6/Cetus | Allies destroyed Cetus Guard 11589 | -6/Cetus | Allies destroyed Cetus Guard 11598 | -6/Cetus | Allies destroyed Cetus Guard 11608 | -6/Cetus | Lost 4 allies 11615 | -6/Cetus | Lost 3 parts (1n2w) 11811 | -6/Cetus | Identified exit to Archives 11848 | -6/Cetus | Spotted Cetus Guard 11848 | -6/Cetus | Spotted Cetus Guard 11854 | -6/Cetus | Spotted Cetus Guard 11861 | -6/Cetus | Spotted Cetus Guard 11861 | -6/Cetus | Allies destroyed Cetus Guard 11869 | -6/Cetus | Allies destroyed Cetus Guard 11873 | -6/Cetus | Destroyed Cetus Guard 11887 | -6/Cetus | Core integrity fell below 20% 11887 | -6/Cetus | Allies destroyed Cetus Guard 11894 | -6/Cetus | Lost 4 parts (1n3w) 11902 | -6/Cetus | Met Revision 17 12142 | -6/Cetus | Entered Archives 12142 | -6/Archives | Accompanied by 2 allies 12304 | -6/Archives | Identified exit to Hub_04(d) 12343 | -6/Archives | Discovered exit to Factory (range 15) 12511 | -6/Archives | Entered Hub_04(d) 12511 | -6/Hub_04(d) | Discovered exit to Factory (range 10) 12571 | -6/Hub_04(d) | Entered Factory 12571 | -5/Factory | Evolved 2 slots: Utility x2 13443 | -5/Factory | Scrapoid reinforcements arrived 13692 | -5/Factory | Sucked down chute 13692 | -5/Factory | Entered Waste 13692 | -5/Waste | The area was eerily silent 13747 | -5/Waste | 4 allies followed down the chute 14064 | -5/Waste | Discovered new exit (range 16) 14713 | -5/Waste | Identified exit to Factory 15028 | -5/Waste | Entered Factory 15028 | -5/Factory | Accompanied by 4 allies 15106 | -5/Factory | Repaired Hyp. Railgun 15167 | -5/Factory | Loaded intel: 8 recycling unit locations 15246 | -5/Factory | Discovered new exit (range 6) 15254 | -5/Factory | Identified exit to Upper Caves 15712 | -5/Factory | Garrison activated, responded to threat 16051 | -5/Factory | Discovered new exit (range 5) 16053 | -5/Factory | Lost 6 parts (1n2u3w) 16224 | -5/Factory | Core integrity fell below 50% 16241 | -5/Factory | Lost 4 parts (4n) 16282 | -5/Factory | Build established: Mutant 16297 | -5/Factory | System corruption reached 10% 16298 | -5/Factory | Core integrity fell below 20% 16333 | -5/Factory | Destroyed by G-50 Soldier with Heavy Laser Last Messages --------------- Penetrated by Slug. >> DECODED: EM Shield location. Acquired 12 matter. Assembly Bed disabled. Lrg. Storage Unit destroyed. Dropped Adv. Recalibrator. Dropped Centrium Heavy Treads. Slug penetrates Assembly Bed. Acquired Hyp. Railgun. Acquired Wave Gun. Penetrated by Slug. Nuclear Pulse Array destroyed. Slug penetrates Assembly Bed. Acquired 115 matter. System corrupted: Matter fused (-7). >> DECODED: Security location. ALERT: Potential suspicious activity detected, Programmers report to Factory Zone 5R. System corrupted: Heat flow error (+200). Assembly Bed disabled. Map ----- +----------------------------------------------------+ | ????????????# """ # """" """" #????# | | ????????????# """ # """" """" #????#### # | | ????????????# # #???????###? | | ????????????+ ####+#########??????????? | | ????????????# """""" #??# #??????????????????? | | ????????????# """""" #??# #??????????????????? | | ????????????# """""" #??# #??????????????????? | | ????????????# """""" #### ###????????????????? | | ????????????# #????????????????? | | ????????????# """""" ! ######???????? ? | | ????????????# """""" +??????? | | ?????######## """""" ######??"S??? | | ?????? # """""" #???????" "?? | | ?????? # ]]] #??????? ?? | | ?????? """" # """"" ]]] #?????? ? | | ?????" """" # """""" ]]] ###????""" """ | | ????"" """" # """""" ^ ""#????"" """ | | """" """" + """""" ""#?????" """ | | # ^ F"#??????" "" | | """" """" # ggg! ^ ""#??????? " | | ???""" """" # [! % ^!! ######????? ? | | ????"" """" # g % k! ############+##### | | ?????? """" # %% %[ | | ??????? # % | | ????????##### % ! | | ????????????# @ | | ????????????# | | ????????????# ######### #### ########### | | ????????????# #???????# #??# #?????????# | | ????????????# +???????# #??# #??????!??# | | ??????????? / #???????+ #??# #?????????# | | ????????? # #???????# #??# #?????????# | | ???????? ?# #???????# %#??# ?????????# | | ???????? ???+ #???????# ##?###?????????# | | ????????????#######???????# #??????????????# | | ??????????????????????????# #??????????????# | | ?????????????????????????? = #??????????????# | | ?????????????????????????? % #??????????????# | | ????????????????????????? ! "??????????????# | | ????????????????????????? "??????????????# | | ?????????????????????????? +??????????????# | | ????????????????????????????# ##???????????????# | | ???????????????????????????????????????????????# | | ??????????????^????????????????????????????????# | | ?????????????????^?????????????????????????????# | | ???????????????????????????????????????????????# | | ???????????????????????????????????????????????+ | | ???????????????????????????????????????????????# | | ?????????????????????????????? ????????????????# | | ?????????????????????????????? ????????????????# | +----------------------------------------------------+ Best States ------------- Heat Dissipation 91 Energy Generation 53 Energy Capacity 775 Matter Stores 300 Matter Capacity 300 Sight Range 16 Terrain Scan Density 10 Corruption Containment 12 Armor Coverage 450 Resistance: TH 10 Weapon Cycling 20 Evasion (%) 62 Target Analysis 5 Recoil Reduction 4 Energy Filtering 50 Item Schematics ----------------- None Robot Schematics ------------------ None Fabricated ------------ G-47 Trooper | x3 | -6/Factory | Preloaded Repaired ---------- Hyp. Railgun | 8% | -5/Factory Studied --------- None Alien Tech Used ----------------- None Achievements -------------- A Problem For Future Me Art Critic Do Not Disturb Mistaken Identity SUBSUB This Is My Hole Challenges ------------ None Game ------ Seed ProjectionBladeRay Manual? 0 Play Time 01:36:50 Cumulative 198.0 hours Start 2025.10.26 @ 13:20:09 End 2025.10.26 @ 14:58:32 Sessions 1 Manual Loads 0 Difficulty Rogue Special Mode None Game No. 581 Rogue 580 Adventurer 1 Explorer 0 Win Type - Total 0 Types 0/0/0/0/0/0/0/0/0/0 Lore% 64 Gallery% 60 Achievement% 32 Wizard Run 0 Options --------- Layout 1 ASCII 0 Keyboard 0 Movement Mouse Keybinds 0 Fullscreen 1 Font 24/Smallcaps Map View 50x35 Zoom Use 0% Tactical HUD 0 Map Filters NONE Filters NONE Steam 1 RUN: ff35e217-239d-41e6-ab92-ab43c7131949